fUSD/lending_fUSD_20251212
["ID","MTS","AMOUNT","RATE_DAILY","PERIOD"]
[398347116,1765538152726,-507.93469914,0.00042465,30]
[398347117,1765538152735,-500.0,0.00042465,30]
[398347118,1765538152745,-500.0,0.00042465,30]
[398347119,1765538152755,-740.86,0.00042465,30]
[398347120,1765538152764,-500.0,0.00042465,30]
[398347121,1765538152774,-1430.91,0.00042465,30]
[398347122,1765538152783,-1100.71,0.00042465,11]
[398347123,1765538152793,-563.18,0.00042465,30]
[398347124,1765538152803,-1144.71,0.00042465,30]
[398347125,1765538152813,-667.94,0.00042465,30]
[398347126,1765538152823,-758.29,0.00042465,30]
[398347127,1765538152833,-500.0,0.00042465,30]
[398347128,1765538152843,-1846.03,0.00042465,30]
[398347129,1765538152852,-500.0,0.00042465,30]
[398347130,1765538152862,-616.68314272,0.00042465,30]
[398347131,1765538152872,-500.0,0.00042465,30]
[398347132,1765538152881,-676.5,0.00042465,30]
[398347133,1765538152891,-500.0,0.00042465,30]
[398347134,1765538152905,-732.08,0.00042465,30]
[398347135,1765538152915,-724.94,0.00042465,30]
[398347136,1765538152924,-643.49,0.00042465,30]
[398347137,1765538152935,-1213.64,0.00042465,30]
[398347138,1765538152944,-607.07,0.00042465,30]
[398347139,1765538152954,-750.79,0.00042465,30]
[398347140,1765538152964,-1215.39,0.00042465,30]
[398347141,1765538152974,-565.7,0.00042465,30]
[398347142,1765538152985,-500.0,0.00042465,30]
[398347143,1765538152995,-848.58,0.00042465,30]
[398347144,1765538153005,-500.0,0.00042465,30]
[398347145,1765538153015,-500.0,0.00042465,30]
[398347146,1765538153025,-753.21,0.00042465,30]
[398347147,1765538153035,-507.72787661,0.00042465,30]
[398347148,1765538153045,-591.61547602,0.00042465,30]
[398347149,1765538153054,-552.91,0.00042465,30]
[398347150,1765538153064,-795.68,0.00042465,30]
[398347151,1765538153074,-500.0,0.00042465,30]
[398347152,1765538153084,-692.67,0.00042465,30]
[398347153,1765538153094,-745.98,0.00042465,30]
[398347154,1765538153105,-500.0,0.00042465,30]
[398347155,1765538153115,-423.83571652,0.00042465,30]
[398347156,1765538153125,-714.2,0.00042465,30]
[398347157,1765538153136,-500.0,0.00042465,30]
[398347158,1765538153147,-500.0,0.00042465,30]
[398347159,1765538153157,-990.89,0.00042465,30]
[398347160,1765538153167,-1141.33,0.00042465,30]
[398347161,1765538153178,-619.14865806,0.00042465,30]
[398347162,1765538153187,-736.93,0.00042465,30]
[398347163,1765538153198,-357.33220783,0.00042465,30]
[398347164,1765538153208,-342.27621091,0.00042465,30]
[398347165,1765538153218,-1026.69,0.00042465,30]
[398347166,1765538153228,-866.2,0.00042465,30]
[398347167,1765538153238,-500.0,0.00042465,30]
[398347168,1765538153248,-521.78987133,0.00042465,30]
[398347169,1765538153258,-510.19,0.00042465,30]
[398347170,1765538153268,-709.46,0.00042465,30]
[398347171,1765538153277,-755.64,0.00042465,30]
[398347172,1765538153287,-1337.95,0.00042465,30]
[398347173,1765538153297,-3627.22,0.00042465,30]
[398347174,1765538153307,-750.49,0.00042465,30]
[398347175,1765538153317,-500.0,0.00042465,30]
[398347176,1765538153327,-856.96,0.00042465,30]
[398347177,1765538153337,-1759.45,0.00042465,30]
[398347178,1765538153347,-500.0,0.00042465,30]
[398347179,1765538153356,-524.23,0.00042465,30]
[398347180,1765538153366,-500.0,0.00042465,30]
[398347181,1765538153376,-500.54,0.00042465,30]
[398347182,1765538153386,-1039.78,0.00042465,30]
[398347183,1765538153396,-730.61,0.00042465,30]
[398347184,1765538153406,-615.84,0.00042465,30]
[398347185,1765538153416,-647.65,0.00042465,30]
[398347186,1765538153425,-906.8,0.00042465,30]
[398347187,1765538153435,-1472.62,0.00042465,30]
[398347188,1765538153446,-551.86,0.00042465,30]
[398347189,1765538153456,-500.0,0.00042465,30]
[398347190,1765538153466,-500.0,0.00042465,30]
[398347191,1765538153476,-500.0,0.00042465,30]
[398347192,1765538153486,-2737.4,0.00042465,30]
[398347193,1765538153498,-1372.17,0.00042465,30]
[398347194,1765538153507,-500.0,0.00042465,30]
[398347195,1765538153517,-500.0,0.00042465,30]
[398347196,1765538153528,-219.8151048,0.00042465,30]
[398347197,1765538153537,-2430.46,0.00042465,30]
[398347198,1765538153547,-500.0,0.00042465,30]
[398347199,1765538153557,-602.44524595,0.00042465,30]
[398347200,1765538153578,-500.0,0.00042465,30]
[398347201,1765538153589,-1139.75,0.00042465,30]
[398347202,1765538153600,-1401.35,0.00042465,30]
[398347203,1765538153610,-800.13,0.00042465,30]
[398347204,1765538153620,-1445.96,0.00042465,30]
[398347205,1765538153630,-500.0,0.00042465,30]
[398347206,1765538153640,-918.45,0.00042465,30]
[398347207,1765538153650,-1070.7,0.00042465,30]
[398347208,1765538153660,-500.0,0.00042465,30]
[398347209,1765538153670,-500.0,0.00042465,30]
[398347210,1765538153680,-2437.96,0.00042465,30]
[398347211,1765538153690,-592.87,0.00042465,30]
[398347212,1765538153701,-233.41139587,0.00042465,30]
[398347213,1765538153711,-1588.94,0.00042465,30]
[398347214,1765538153722,-537.45,0.00042465,30]
[398347215,1765538153732,-500.0,0.00042465,30]
[398347216,1765538153742,-522.96,0.00042465,30]
[398347217,1765538153752,-1096.52,0.00042465,30]
[398347218,1765538153763,-500.0,0.00042465,30]
[398347219,1765538153773,-500.0,0.00042465,30]
[398347220,1765538153783,-542.04,0.00042465,30]
[398347221,1765538153794,-637.83,0.00042465,30]
[398347222,1765538153805,-698.44,0.00042465,30]
[398347223,1765538153815,-660.2,0.00042465,30]
[398347224,1765538153824,-500.0,0.00042465,30]
[398347225,1765538153835,-506.71045873,0.00042465,30]
[398347226,1765538153846,-1065.82,0.00042465,30]
[398347227,1765538153857,-500.0,0.00042465,30]
[398347228,1765538153868,-2027.17,0.00042465,30]
[398347229,1765538153878,-663.04,0.00042465,30]
[398347230,1765538153889,-500.0,0.00042465,30]
[398347231,1765538153904,-500.0,0.00042465,30]
[398347232,1765538153914,-500.0,0.00042465,30]
[398347233,1765538153930,-500.0,0.00042465,30]
[398347234,1765538153941,-165.50390073,0.00042465,30]
[398347235,1765538153952,-1034.23,0.00042465,30]
[398347236,1765538153962,-1526.42,0.00042465,30]
[398347237,1765538153973,-500.0,0.00042465,30]
[398347238,1765538153983,-432.94039246,0.00042465,30]
[398347239,1765538153994,-604.96,0.00042465,30]
[398347240,1765538154005,-500.0,0.00042465,30]
[398347241,1765538154015,-526.63,0.00042465,30]
[398347242,1765538154026,-500.0,0.00042465,30]
[398347243,1765538154037,-1577.6,0.00042465,30]
[398347244,1765538154047,-500.0,0.00042465,30]
[398347245,1765538154058,-500.0,0.00042465,30]
[398347246,1765538154068,-500.0,0.00042465,30]
[398347247,1765538154079,-500.0,0.00042465,30]
[398347248,1765538154089,-1132.8,0.00042465,30]
[398347249,1765538154100,-705.52,0.00042465,30]
[398347250,1765538154110,-570.07,0.00042465,30]
[398347251,1765538154120,-961.9,0.00042465,30]
[398347252,1765538154130,-735.82,0.00042465,30]
[398347253,1765538154140,-749.42,0.00042465,30]
[398347254,1765538154151,-1191.88,0.00042465,30]
[398347255,1765538154161,-522.47,0.00042465,30]
[398347256,1765538154171,-4298.84,0.00042465,30]
[398347257,1765538154181,-974.16,0.00042465,30]
[398347258,1765538154190,-1095.96,0.00042465,30]
[398347259,1765538154200,-938.71,0.00042465,30]
[398347260,1765538154210,-1397.58,0.00042465,30]
[398347261,1765538154219,-500.0,0.00042465,30]
[398347262,1765538154229,-2368.57,0.00042465,30]
[398347263,1765538154239,-508.91,0.00042465,30]
[398347264,1765538154254,-1181.83,0.00042465,30]
[398347265,1765538154265,-2107.36,0.00042465,30]
[398347266,1765538154275,-591.32,0.00042465,30]
[398347267,1765538154295,-500.0,0.00042465,30]
[398347268,1765538154304,-1407.05,0.00042465,30]
[398347269,1765538154318,-712.24,0.00042465,30]
[398347270,1765538154327,-500.0,0.00042465,30]
[398347271,1765538154337,-1000.77,0.00042465,30]
[398347272,1765538154347,-500.0,0.00042465,30]
[398347273,1765538154357,-578.91,0.00042465,30]
[398347274,1765538154367,-1480.01,0.00042465,30]
[398347275,1765538154377,-796.45,0.00042465,30]
[398347276,1765538154387,-1121.9,0.00042465,30]
[398347277,1765538154396,-538.64,0.00042465,30]
[398347278,1765538154405,-875.09,0.00042465,30]
[398347279,1765538154415,-1342.46,0.00042465,30]
[398347280,1765538154425,-500.0,0.00042465,30]
[398347281,1765538154435,-500.0,0.00042465,30]
[398347282,1765538154445,-500.0,0.00042465,30]
[398347283,1765538154455,-551.7,0.00042465,30]
[398347284,1765538154465,-500.0,0.00042465,30]
[398347285,1765538154475,-500.0,0.00042465,30]
[398347286,1765538154485,-522.1057248,0.00042465,30]
[398347287,1765538154495,-500.0,0.00042465,30]
[398347288,1765538154505,-891.01,0.00042465,30]
[398347289,1765538154515,-1631.76,0.00042465,30]
[398347290,1765538154525,-500.0,0.00042465,30]
[398347291,1765538154535,-511.07,0.00042465,30]
[398347292,1765538154545,-935.63,0.00042465,30]
[398347293,1765538154555,-500.0,0.00042465,30]
[398347294,1765538154565,-1213.86,0.00042465,30]
[398347295,1765538154574,-713.52,0.00042465,30]
[398347296,1765538154584,-500.0,0.00042465,30]
[398347297,1765538154594,-999.59,0.00042465,30]
[398347298,1765538154604,-762.67,0.00042465,30]
[398347299,1765538154613,-500.0,0.00042465,30]
[398347300,1765538154623,-922.65,0.00042465,30]
[398347301,1765538154633,-1139.73,0.00042465,30]
[398347302,1765538154643,-500.0,0.00042465,30]
[398347303,1765538154652,-960.26,0.00042465,30]
[398347304,1765538154667,-921.07,0.00042465,30]
[398347305,1765538154677,-824.08,0.00042465,30]
[398347306,1765538154687,-458.18746465,0.00042465,30]
[398347307,1765538154696,-1836.88,0.00042465,30]
[398347308,1765538154706,-500.0,0.00042465,30]
[398347309,1765538154717,-500.0,0.00042465,30]
[398347310,1765538154726,-807.06,0.00042465,30]
[398347311,1765538154736,-1304.95,0.00042465,30]
[398347312,1765538154746,-1005.91,0.00042465,30]
[398347313,1765538154756,-500.0,0.00042465,30]
[398347314,1765538154766,-1051.07,0.00042465,30]
[398347315,1765538154776,-500.0,0.00042465,30]
[398347316,1765538154785,-929.4,0.00042465,30]
[398347317,1765538154795,-500.0,0.00042465,30]
[398347318,1765538154806,-621.09,0.00042465,30]
[398347319,1765538154816,-500.0,0.00042465,30]
[398347320,1765538154826,-500.0,0.00042465,30]
[398347321,1765538154836,-1874.12,0.00042465,30]
[398347322,1765538154846,-521.95,0.00042465,30]
[398347323,1765538154855,-500.0,0.00042465,25]
[398347324,1765538154864,-500.0,0.00042465,30]
[398347325,1765538154874,-578.01,0.00042465,30]
[398347326,1765538154884,-667.26,0.00042465,7]
[398347327,1765538154895,-701.87,0.00042465,30]
[398347328,1765538154905,-532.36,0.00042465,30]
[398347329,1765538154915,-890.33,0.00042465,30]
[398347330,1765538154924,-619.34,0.00042465,30]
[398347331,1765538154934,-500.0,0.00042465,30]
[398347332,1765538154944,-666.66,0.00042465,30]
[398347333,1765538154954,-679.95,0.00042465,30]
[398347334,1765538154966,-846.97,0.00042465,30]
[398347335,1765538154977,-1622.6,0.00042465,30]
[398347336,1765538154987,-1634.93,0.00042465,30]
[398347337,1765538154998,-867.67,0.00042465,30]
[398347338,1765538155008,-1372.09,0.00042465,30]
[398347339,1765538155018,-500.0,0.00042465,30]
[398347340,1765538155032,-630.63,0.00042465,30]
[398347341,1765538155042,-500.0,0.00042465,30]
[398347342,1765538155053,-1368.81,0.00042465,30]
[398347343,1765538155063,-500.0,0.00042465,30]
[398347344,1765538155073,-500.0,0.00042465,30]
[398347345,1765538155083,-1877.84,0.00042465,30]
[398347346,1765538155092,-2251.55,0.00042465,30]
[398347347,1765538155103,-626.64,0.00042465,30]
[398347348,1765538155113,-554.25,0.00042465,30]
[398347349,1765538155123,-500.0,0.00042465,30]
[398347350,1765538155133,-500.0,0.00042465,30]
[398347351,1765538155143,-1066.72,0.00042465,30]
[398347352,1765538155153,-1191.7,0.00042465,30]
[398347353,1765538155164,-620.95,0.00042465,30]
[398347354,1765538155175,-500.0,0.00042465,30]
[398347355,1765538155185,-2254.72,0.00042465,30]
[398347356,1765538155196,-1109.61,0.00042465,30]
[398347357,1765538155206,-500.0,0.00042465,30]
[398347358,1765538155217,-1451.06,0.00042465,30]
[398347359,1765538155228,-500.0,0.00042465,30]
[398347360,1765538155238,-524.1,0.00042465,30]
[398347361,1765538155248,-535.99,0.00042465,30]
[398347362,1765538155258,-1647.96,0.00042465,30]
[398347363,1765538155268,-500.0,0.00042465,30]
[398347364,1765538155278,-1607.35,0.00042465,30]
[398347365,1765538155288,-525.83291261,0.00042465,30]
[398347366,1765538155298,-500.0,0.00042465,30]
[398347367,1765538155307,-1890.33,0.00042465,30]
[398347368,1765538155318,-702.35,0.00042465,30]
[398347369,1765538155328,-1448.32,0.00042465,30]
[398347370,1765538155337,-1632.19,0.00042465,30]
[398347371,1765538155347,-876.83,0.00042465,30]
[398347372,1765538155356,-832.79,0.00042465,30]
[398347373,1765538155366,-623.5,0.00042465,30]
[398347374,1765538155376,-2761.6,0.00042465,30]
[398347375,1765538155386,-604.56,0.00042465,30]
[398347376,1765538155400,-769.61,0.00042465,30]
[398347377,1765538155410,-1014.43,0.00042465,30]
[398347378,1765538155420,-500.0,0.00042465,30]
[398347379,1765538155430,-500.0,0.00042465,30]
[398347380,1765538155440,-500.0,0.00042465,30]
[398347381,1765538155450,-977.53,0.00042465,30]
[398347382,1765538155460,-799.32,0.00042465,30]
[398347383,1765538155469,-500.0,0.00042465,30]
[398347384,1765538155479,-1062.18,0.00042465,30]
[398347385,1765538155488,-502.48,0.00042465,30]
[398347386,1765538155499,-882.68,0.00042465,30]
[398347387,1765538155509,-907.2,0.00042465,30]
[398347388,1765538155518,-1677.04,0.00042465,30]
[398347389,1765538155528,-786.93,0.00042465,30]
[398347390,1765538155538,-566.21,0.00042465,30]
[398347391,1765538155549,-1523.05,0.00042465,30]
[398347392,1765538155560,-623.75,0.00042465,30]
[398347393,1765538155569,-646.21,0.00042465,30]
[398347394,1765538155580,-500.0,0.00042465,30]
[398347395,1765538155590,-850.56,0.00042465,30]
[398347396,1765538155603,-506.59,0.00042465,30]
[398347397,1765538155613,-2457.1,0.00042465,30]
[398347398,1765538155624,-1824.58,0.00042465,30]
[398347399,1765538155634,-593.38,0.00042465,30]
[398347400,1765538155644,-2498.97,0.00042465,30]
[398347401,1765538155654,-937.73,0.00042465,30]
[398347402,1765538155664,-500.0,0.00042465,30]
[398347403,1765538155674,-7728.61,0.00042465,30]
[398347404,1765538155684,-500.0,0.00042465,30]
[398347405,1765538155693,-524.43171514,0.00042465,30]
[398347406,1765538155703,-521.3,0.00042465,30]
[398347407,1765538155713,-5162.44,0.00042465,30]
[398347408,1765538155723,-4512.65,0.00042465,30]
[398347409,1765538155733,-2045.54,0.00042465,30]
[398347410,1765538155744,-2044.49,0.00042465,30]
[398347411,1765538155754,-803.09,0.00042465,30]
[398347412,1765538155764,-880.62,0.00042465,30]
[398347413,1765538155772,-1170.58,0.00042465,30]
[398347414,1765538155782,-1055.54,0.00042465,30]
[398347415,1765538155792,-500.0,0.00042465,30]
[398347416,1765538155801,-2563.76,0.00042465,30]
[398347417,1765538155812,-3132.56,0.00042465,30]
[398347418,1765538155822,-647.8,0.00042465,30]
[398347419,1765538155832,-1267.04,0.00042465,30]
[398347420,1765538155842,-920.56,0.00042465,30]
[398347421,1765538155852,-1034.08,0.00042465,30]
[398347422,1765538155862,-500.0,0.00042465,30]
[398347423,1765538155872,-636.17,0.00042465,30]
[398347424,1765538155882,-534.23,0.00042465,30]
[398347425,1765538155898,-9205.7,0.00042465,30]
[398347426,1765538155909,-2487.95,0.00042465,14]
[398347427,1765538155919,-500.0,0.00042465,30]
[398347428,1765538155929,-500.0,0.00042465,30]
[398347429,1765538155939,-852.0,0.00042465,30]
[398347430,1765538155949,-1627.24,0.00042465,30]
[398347431,1765538155960,-9937.58,0.00042465,30]
[398347432,1765538155970,-1228.02,0.00042465,30]
[398347433,1765538155987,-727.84,0.00042465,30]
[398347434,1765538156001,-709.82,0.00042465,30]
[398347435,1765538156011,-2584.59,0.00042465,30]
[398347436,1765538156021,-3111.31,0.00042465,30]
[398347437,1765538156032,-938.28,0.00042465,30]
[398347438,1765538156044,-724.94,0.00042465,30]
[398347439,1765538156054,-2254.56,0.00042465,30]
[398347440,1765538156065,-922.78,0.00042465,30]
[398347441,1765538156075,-899.02,0.00042465,30]
[398347442,1765538156086,-500.0,0.00042465,30]
[398347443,1765538156097,-730.51,0.00042465,30]
[398347444,1765538156107,-670.8,0.00042465,30]
[398347445,1765538156117,-890.92,0.00042465,30]
[398347446,1765538156128,-1306.66,0.00042465,30]
[398347447,1765538156138,-500.0,0.00042465,30]
[398347448,1765538156149,-500.0,0.00042465,30]
[398347449,1765538156159,-949.39,0.00042465,30]
[398347450,1765538156169,-1193.64,0.00042465,30]
[398347451,1765538156180,-667.64,0.00042465,30]
[398347452,1765538156190,-1105.53,0.00042465,30]
[398347453,1765538156206,-632.7440528,0.00042465,30]
[398347454,1765538156217,-1566.37,0.00042465,30]
[398347455,1765538156227,-691.31,0.00042465,30]
[398347456,1765538156238,-986.5,0.00042465,30]
[398347457,1765538156248,-2660.16,0.00042465,30]
[398347458,1765538156259,-500.0,0.00042465,30]
[398347459,1765538156269,-677.72,0.00042465,30]
[398347460,1765538156279,-1062.51,0.00042465,30]
[398347461,1765538156290,-1023.2,0.00042465,30]
[398347462,1765538156300,-765.14,0.00042465,30]
[398347463,1765538156311,-2249.34,0.00042465,30]
[398347464,1765538156323,-541.12,0.00042465,30]
[398347465,1765538156333,-641.4,0.00042465,30]
[398347466,1765538156344,-2149.98,0.00042465,30]
[398347467,1765538156354,-1066.93,0.00042465,30]
[398347468,1765538156368,-1794.3,0.00042465,30]
[398347469,1765538156378,-500.0,0.00042465,30]
[398347470,1765538156389,-6024.98,0.00042465,30]
[398347471,1765538156400,-500.0,0.00042465,30]
[398347472,1765538156410,-652.45,0.00042465,30]
[398347473,1765538156420,-584.74,0.00042465,30]
[398347474,1765538156431,-500.0,0.00042465,30]
[398347475,1765538156441,-500.0,0.00042465,30]
[398347476,1765538156452,-1595.92,0.00042465,30]
[398347477,1765538156463,-920.72,0.00042465,30]
[398347478,1765538156474,-1243.86,0.00042465,30]
[398347479,1765538156485,-616.65,0.00042465,30]
[398347480,1765538156496,-3185.29,0.00042465,30]
[398347481,1765538156506,-1899.74,0.00042465,30]
[398347482,1765538156516,-767.47,0.00042465,30]
[398347483,1765538156529,-3636.79,0.00042465,30]
[398347484,1765538156540,-1283.24,0.00042465,30]
[398347485,1765538156550,-1218.06,0.00042465,30]
[398347486,1765538156561,-593.47976191,0.00042465,30]
[398347487,1765538156571,-3032.18,0.00042465,30]
[398347488,1765538156581,-500.0,0.00042465,30]
[398347489,1765538156591,-616.0,0.00042465,30]
[398347490,1765538156601,-1329.42,0.00042465,30]
[398347491,1765538156612,-638.79,0.00042465,30]
[398347492,1765538156623,-500.0,0.00042465,30]
[398347493,1765538156634,-950.53,0.00042465,30]
[398347494,1765538156645,-664.16,0.00042465,30]
[398347495,1765538156655,-1066.97,0.00042465,30]
[398347496,1765538156666,-599.13,0.00042465,30]
[398347497,1765538156676,-500.0,0.00042465,30]
[398347498,1765538156686,-1433.51,0.00042465,30]
[398347499,1765538156697,-6840.01,0.00042465,30]
[398347500,1765538156706,-2849.13,0.00042465,30]
[398347501,1765538156717,-642.56,0.00042465,30]
[398347502,1765538156728,-500.0,0.00042465,30]
[398347503,1765538156742,-2147.05,0.00042465,30]
[398347504,1765538156752,-6708.51,0.00042465,30]
[398347505,1765538156763,-500.0,0.00042465,30]
[398347506,1765538156774,-1746.8,0.00042465,30]
[398347507,1765538156785,-1135.94,0.00042465,30]
[398347508,1765538156796,-500.0,0.00042465,30]
[398347509,1765538156806,-1293.36,0.00042465,30]
[398347510,1765538156818,-500.0,0.00042465,30]
[398347511,1765538156829,-1510.63,0.00042465,30]
[398347512,1765538156843,-500.0,0.00042465,30]
[398347513,1765538156854,-911.19,0.00042465,30]
[398347514,1765538156865,-2130.63,0.00042465,30]
[398347515,1765538156876,-500.0,0.00042465,30]
[398347516,1765538156888,-1011.94,0.00042465,30]
[398347517,1765538156901,-1929.57,0.00042465,30]
[398347518,1765538156913,-657.48,0.00042465,30]
[398347519,1765538156925,-1120.09,0.00042465,30]
[398347520,1765538156938,-732.14,0.00042465,30]
[398347521,1765538156951,-4030.69,0.00042465,30]
[398347522,1765538156963,-995.54,0.00042465,30]
[398347523,1765538156977,-1083.81,0.00042465,30]
[398347524,1765538156990,-3238.19,0.00042465,30]
[398347525,1765538157005,-726.94,0.00042465,30]
[398347526,1765538157018,-2367.27,0.00042465,30]
[398347527,1765538157031,-608.27,0.00042465,30]
[398347528,1765538157043,-500.0,0.00042465,30]
[398347529,1765538157055,-500.0,0.00042465,30]
[398347530,1765538157067,-583.32,0.00042465,30]
[398347531,1765538157079,-625.74,0.00042465,30]
[398347532,1765538157090,-500.0,0.00042465,30]
[398347533,1765538157101,-2843.71,0.00042465,30]
[398347534,1765538157115,-1329.63,0.00042465,30]
[398347535,1765538157127,-500.0,0.00042465,30]
[398347536,1765538157139,-605.17,0.00042465,30]
[398347537,1765538157150,-610.47,0.00042465,30]
[398347538,1765538157162,-677.17,0.00042465,30]
[398347539,1765538157173,-1219.89,0.00042465,30]
[398347540,1765538157185,-1003.5,0.00042465,30]
[398347541,1765538157196,-658.88,0.00042465,30]
[398347542,1765538157207,-621.26,0.00042465,30]
[398347543,1765538157218,-500.0,0.00042465,30]
[398347544,1765538157230,-2089.28,0.00042465,30]
[398347545,1765538157241,-500.0,0.00042465,30]
[398347546,1765538157252,-777.33,0.00042465,30]
[398347547,1765538157263,-506.96,0.00042465,30]
[398347548,1765538157274,-610.54,0.00042465,30]
[398347549,1765538157285,-500.0,0.00042465,30]
[398347550,1765538157296,-557.42,0.00042465,30]
[398347551,1765538157308,-600.44,0.00042465,30]
[398347552,1765538157319,-516.74,0.00042465,30]
[398347553,1765538157331,-500.0,0.00042465,15]
[398347554,1765538157342,-759.14,0.00042465,30]
[398347555,1765538157353,-571.0,0.00042465,30]
[398347556,1765538157364,-1161.86,0.00042465,30]
[398347557,1765538157375,-1044.6,0.00042465,30]
[398347558,1765538157387,-2199.62,0.00042465,30]
[398347559,1765538157398,-503.79,0.00042465,30]
[398347560,1765538157409,-500.0,0.00042465,30]
[398347561,1765538157420,-588.85,0.00042465,30]
[398347562,1765538157432,-500.0,0.00042465,30]
[398347563,1765538157443,-500.0,0.00042465,30]
[398347564,1765538157453,-578.6,0.00042465,30]
[398347565,1765538157464,-500.0,0.00042465,30]
[398347566,1765538157475,-809.01,0.00042465,30]
[398347567,1765538157490,-500.0,0.00042465,30]
[398347568,1765538157502,-2620.34,0.00042465,30]
[398347569,1765538157513,-1731.68,0.00042465,30]
[398347570,1765538157524,-719.27,0.00042465,30]
[398347571,1765538157535,-517.1,0.00042465,30]
[398347572,1765538157546,-2018.77,0.00042465,30]
[398347573,1765538157556,-822.61,0.00042465,30]
[398347574,1765538157567,-500.0,0.00042465,30]
[398347575,1765538157578,-511.8,0.00042465,30]
[398347576,1765538157589,-1245.76,0.00042465,30]
[398347577,1765538157600,-1929.49,0.00042465,30]
[398347578,1765538157611,-629.76,0.00042465,30]
[398347579,1765538157622,-500.0,0.00042465,30]
[398347580,1765538157633,-2747.32,0.00042465,30]
[398347581,1765538157644,-504.87,0.00042465,30]
[398347582,1765538157655,-3082.74,0.00042465,30]
[398347583,1765538157666,-992.27,0.00042465,30]
[398347584,1765538157677,-810.69,0.00042465,30]
[398347585,1765538157688,-1765.66,0.00042465,30]
[398347586,1765538157699,-669.73,0.00042465,30]
[398347587,1765538157710,-1342.66,0.00042465,30]
[398347588,1765538157721,-682.03,0.00042465,30]
[398347589,1765538157732,-648.8,0.00042465,30]
[398347590,1765538157742,-1864.3,0.00042465,30]
[398347591,1765538157753,-500.0,0.00042465,30]
[398347592,1765538157764,-689.18,0.00042465,30]
[398347593,1765538157775,-598.31,0.00042465,30]
[398347594,1765538157787,-792.27,0.00042465,30]
[398347595,1765538157797,-2535.84,0.00042465,30]
[398347596,1765538157808,-500.0,0.00042465,30]
[398347597,1765538157819,-1454.84,0.00042465,30]
[398347598,1765538157830,-836.48,0.00042465,30]
[398347599,1765538157841,-630.54,0.00042465,30]
[398347600,1765538157856,-542.7,0.00042465,30]
[398347601,1765538157867,-500.0,0.00042465,30]
[398347602,1765538157877,-625.15,0.00042465,30]
[398347603,1765538157887,-2978.69,0.00042465,30]
[398347604,1765538157902,-566.99,0.00042465,30]
[398347605,1765538157912,-501.3,0.00042465,30]
[398347606,1765538157923,-500.0,0.00042465,30]
[398347607,1765538157934,-1577.35,0.00042465,30]
[398347608,1765538157945,-716.61,0.00042465,30]
[398347609,1765538157956,-2248.13,0.00042465,30]
[398347610,1765538157967,-556.61,0.00042465,30]
[398347611,1765538157978,-500.0,0.00042465,30]
[398347612,1765538157989,-1673.77,0.00042465,30]
[398347613,1765538158000,-2331.84,0.00042465,30]
[398347614,1765538158011,-1028.79,0.00042465,30]
[398347615,1765538158021,-1527.47,0.00042465,30]